fUST/lending_fUST_20260508
["ID","MTS","AMOUNT","RATE_DAILY","PERIOD"]
[421854670,1778231443000,-19503.01,0.00011022,2]
[421854706,1778231443000,-1385.29,0.00011022,2]
[421854704,1778231443000,-1100.88,0.00011022,2]
[421854700,1778231443000,-567.58,0.00011022,2]
[421854702,1778231443000,-500.0,0.00011022,2]
[421854697,1778231443000,-1001.21,0.00011022,2]
[421854709,1778231443000,-500.0,0.00011022,2]
[421854708,1778231443000,-500.0,0.00011022,2]
[421854687,1778231443000,-500.0,0.00011022,2]
[421854672,1778231443000,-1587.79,0.00011022,2]
[421854711,1778231443000,-4905.18,0.00011022,2]
[421854675,1778231443000,-3898.24,0.00011022,2]
[421854677,1778231443000,-679.82,0.00011022,2]
[421854681,1778231443000,-1537.23,0.00011022,2]
[421854685,1778231443000,-500.0,0.00011022,2]
[421854673,1778231443000,-500.0,0.00011022,2]
[421854695,1778231443000,-1929.06,0.00011022,2]
[421854679,1778231443000,-500.0,0.00011022,2]
[421854689,1778231443000,-914.28,0.00011022,2]
[421854691,1778231443000,-2483.47,0.00011022,2]
[421854693,1778231443000,-500.0,0.00011022,2]
[421854683,1778231443000,-746.22,0.00011022,2]
[421854800,1778231444000,-289.09245457,0.00011029,2]
[421854802,1778231444000,-500.0,0.00011029,2]
[421854796,1778231444000,-500.0,0.00011029,2]
[421854794,1778231444000,-354.84693996,0.00011029,2]
[421854783,1778231444000,-500.0,0.00011029,2]
[421854792,1778231444000,-963.63,0.00011029,2]
[421854779,1778231444000,-500.0,0.00011029,2]
[421854787,1778231444000,-500.0,0.00011029,2]
[421854781,1778231444000,-500.0,0.00011029,2]
[421854785,1778231444000,-578.58,0.00011029,2]
[421854809,1778231444000,-315.87,0.00011029,2]
[421854790,1778231444000,-500.0,0.00011029,2]
[421854804,1778231444000,-500.0,0.00011029,2]
[421854825,1778231444000,-266.85,0.00011029,2]
[421854806,1778231444000,-502.07039185,0.00011029,2]
[421854817,1778231444000,-575.07,0.00011029,2]
[421854815,1778231444000,-518.36,0.00011029,2]
[421854811,1778231444000,-500.0,0.00011029,2]
[421854813,1778231444000,-500.0,0.00011029,2]
[421854821,1778231444000,-1459.13,0.00011029,2]
[421854819,1778231444000,-500.0,0.00011029,2]
[421854823,1778231444000,-574.3,0.00011029,2]
[421854835,1778231444000,-626.06,0.00011029,2]
[421854771,1778231444000,-500.0,0.00011029,2]
[421854839,1778231444000,-500.0,0.00011029,2]
[421854841,1778231444000,-1405.58,0.00011029,2]
[421854837,1778231444000,-502.08280408,0.00011029,2]
[421854798,1778231444000,-500.0,0.00011029,2]
[421854777,1778231444000,-500.0,0.00011029,2]
[421854765,1778231444000,-500.0,0.00011028,2]
[421854773,1778231444000,-511.49,0.00011029,2]
[421854715,1778231444000,-500.0,0.00011022,2]
[421854713,1778231444000,-576.02,0.00011022,2]
[421854717,1778231444000,-37937.4122096,0.00011023,2]
[421854719,1778231444000,-787.16,0.00011028,2]
[421854721,1778231444000,-1220.01,0.00011028,2]
[421854727,1778231444000,-516.41,0.00011028,2]
[421854723,1778231444000,-934.48,0.00011028,2]
[421854732,1778231444000,-966.81,0.00011028,2]
[421854725,1778231444000,-500.0,0.00011028,2]
[421854730,1778231444000,-973.86,0.00011028,2]
[421854736,1778231444000,-2154.73,0.00011028,2]
[421854741,1778231444000,-2116.84,0.00011028,2]
[421854745,1778231444000,-500.0,0.00011028,2]
[421854743,1778231444000,-500.0,0.00011028,2]
[421854734,1778231444000,-3568.78,0.00011028,2]
[421854738,1778231444000,-500.0,0.00011028,2]
[421854751,1778231444000,-2703.92,0.00011028,2]
[421854755,1778231444000,-500.0,0.00011028,2]
[421854749,1778231444000,-500.0,0.00011028,2]
[421854757,1778231444000,-619.09475573,0.00011028,2]
[421854753,1778231444000,-643.3,0.00011028,2]
[421854747,1778231444000,-749.54,0.00011028,2]
[421854759,1778231444000,-500.0,0.00011028,2]
[421854761,1778231444000,-500.0,0.00011028,2]
[421854763,1778231444000,-500.0,0.00011028,2]
[421854767,1778231444000,-500.0,0.00011028,2]
[421854769,1778231444000,-539.63525642,0.00011028,2]
[421854775,1778231444000,-500.0,0.00011029,2]
[421854843,1778231444000,-500.0,0.00011029,2]
[421854831,1778231444000,-500.0,0.00011029,2]
[421854829,1778231444000,-500.0,0.00011029,2]
[421854910,1778231444000,-602.78,0.00011029,2]
[421854914,1778231444000,-524.2,0.00011029,2]
[421854916,1778231444000,-522.75,0.00011029,2]
[421854905,1778231444000,-500.0,0.00011029,2]
[421854903,1778231444000,-500.0,0.00011029,2]
[421854912,1778231444000,-500.0,0.00011029,2]
[421854908,1778231444000,-500.0,0.00011029,2]
[421854924,1778231444000,-500.0,0.00011029,2]
[421854926,1778231444000,-657.95,0.00011029,2]
[421854928,1778231444000,-834.58,0.00011029,2]
[421854930,1778231444000,-500.0,0.00011029,2]
[421854945,1778231444000,-500.0,0.00011029,2]
[421854932,1778231444000,-501.92146028,0.00011029,2]
[421854934,1778231444000,-500.0,0.00011029,2]
[421854943,1778231444000,-500.0,0.00011029,2]
[421854946,1778231444000,-500.0,0.00011029,2]
[421854936,1778231444000,-517.98,0.00011029,2]
[421854941,1778231444000,-500.0,0.00011029,2]
[421854944,1778231444000,-1473.37,0.00011029,2]
[421854937,1778231444000,-500.0,0.00011029,2]
[421854947,1778231444000,-500.0,0.00011029,2]
[421854950,1778231444000,-500.0,0.00011029,2]
[421854949,1778231444000,-502.29693009,0.00011029,2]
[421854951,1778231444000,-547.16,0.00011029,2]
[421854953,1778231444000,-500.0,0.00011029,2]
[421854955,1778231444000,-500.0,0.00011029,2]
[421854845,1778231444000,-500.0,0.00011029,2]
[421854921,1778231444000,-534.67,0.00011029,2]
[421854901,1778231444000,-2614.11,0.00011029,2]
[421854939,1778231444000,-500.0,0.00011029,2]
[421854894,1778231444000,-500.0,0.00011029,2]
[421854827,1778231444000,-605.58,0.00011029,2]
[421854890,1778231444000,-500.0,0.00011029,2]
[421854833,1778231444000,-500.0,0.00011029,2]
[421854847,1778231444000,-502.3931989,0.00011029,2]
[421854849,1778231444000,-506.88,0.00011029,2]
[421854851,1778231444000,-500.0,0.00011029,2]
[421854853,1778231444000,-179.63,0.00011029,2]
[421854857,1778231444000,-500.0,0.00011029,2]
[421854861,1778231444000,-668.88,0.00011029,2]
[421854863,1778231444000,-293.48,0.00011029,2]
[421854859,1778231444000,-500.0,0.00011029,2]
[421854867,1778231444000,-500.0,0.00011029,2]
[421854855,1778231444000,-500.0,0.00011029,2]
[421854869,1778231444000,-501.89562704,0.00011029,2]
[421854865,1778231444000,-500.0,0.00011029,2]
[421854896,1778231444000,-1515.53,0.00011029,2]
[421854899,1778231444000,-521.42,0.00011029,2]
[421854870,1778231444000,-558.3,0.00011029,2]
[421854891,1778231444000,-745.57,0.00011029,2]
[421854888,1778231444000,-538.88,0.00011029,2]
[421854897,1778231444000,-500.0,0.00011029,2]
[421854886,1778231444000,-500.0,0.00011029,2]
[421854882,1778231444000,-3117.39,0.00011029,2]
[421854879,1778231444000,-1554.37,0.00011029,2]
[421854884,1778231444000,-1286.7596,0.00011029,2]
[421854875,1778231444000,-329.69,0.00011029,2]
[421854877,1778231444000,-911.99,0.00011029,2]
[421854873,1778231444000,-500.0,0.00011029,2]
[421854881,1778231444000,-500.0,0.00011029,2]
[421855044,1778231445000,-500.0,0.00011296,2]
[421855034,1778231445000,-1001.21,0.00011296,2]
[421855036,1778231445000,-567.58,0.00011296,2]
[421855040,1778231445000,-1100.88,0.00011296,2]
[421855042,1778231445000,-1385.29,0.00011296,2]
[421855030,1778231445000,-500.0,0.00011296,2]
[421855005,1778231445000,-500.0,0.00011296,2]
[421855038,1778231445000,-500.0,0.00011296,2]
[421855027,1778231445000,-914.28,0.00011296,2]
[421855028,1778231445000,-2483.47,0.00011296,2]
[421855007,1778231445000,-19503.01,0.00011296,2]
[421855046,1778231445000,-500.0,0.00011296,2]
[421855032,1778231445000,-1929.06,0.00011296,2]
[421855048,1778231445000,-4905.18,0.00011296,2]
[421855072,1778231445000,-973.86,0.00011302,2]
[421855068,1778231445000,-934.48,0.00011302,2]
[421855052,1778231445000,-456.3275978,0.00011299,2]
[421855062,1778231445000,-456.3275978,0.00011299,2]
[421855058,1778231445000,-533.1604548,0.00011299,2]
[421855054,1778231445000,-151.6383496,0.00011299,2]
[421855060,1778231445000,-455.4524196,0.00011299,2]
[421855066,1778231445000,-1220.01,0.00011302,2]
[421855064,1778231445000,-787.16,0.00011302,2]
[421855076,1778231445000,-3568.78,0.00011302,2]
[421855070,1778231445000,-500.0,0.00011302,2]
[421855074,1778231445000,-966.81,0.00011302,2]
[421855056,1778231445000,-325.7485516,0.00011299,2]
[421855025,1778231445000,-500.0,0.00011296,2]
[421855050,1778231445000,-576.02,0.00011296,2]
[421855009,1778231445000,-1587.79,0.00011296,2]
[421854971,1778231445000,-500.0,0.00011227,2]
[421855023,1778231445000,-500.0,0.00011296,2]
[421854957,1778231445000,-4218.5364548,0.00011114,2]
[421854969,1778231445000,-507.14,0.00011227,2]
[421854967,1778231445000,-500.0,0.00011227,2]
[421854965,1778231445000,-500.0,0.00011227,2]
[421854961,1778231445000,-500.0,0.00011127,2]
[421854959,1778231445000,-773.8759994,0.00011114,2]
[421854963,1778231445000,-911.17308651,0.0001113,2]
[421854992,1778231445000,-185.0,0.00011246,2]
[421854976,1778231445000,-500.0,0.00011227,2]
[421854986,1778231445000,-1411.0,0.00011245,2]
[421854994,1778231445000,-2837.81413752,0.00011275,2]
[421854997,1778231445000,-440.68,0.00011296,2]
[421854973,1778231445000,-500.0,0.00011227,2]
[421854974,1778231445000,-500.0,0.00011227,2]
[421854984,1778231445000,-2215.0,0.00011239,2]
[421854980,1778231445000,-500.0,0.00011227,2]
[421854996,1778231445000,-321.43,0.00011296,2]
[421854990,1778231445000,-741.0,0.00011246,2]
[421854978,1778231445000,-501.76791667,0.00011227,2]
[421854982,1778231445000,-647.0,0.00011239,2]
[421854988,1778231445000,-442.0,0.00011246,2]
[421855015,1778231445000,-679.82,0.00011296,2]
[421855011,1778231445000,-449.38,0.00011296,2]
[421855003,1778231445000,-500.0,0.00011296,2]
[421855001,1778231445000,-728.45,0.00011296,2]
[421855013,1778231445000,-3898.24,0.00011296,2]
[421855019,1778231445000,-1537.23,0.00011296,2]
[421855017,1778231445000,-500.0,0.00011296,2]
[421854999,1778231445000,-500.0,0.00011296,2]
[421855021,1778231445000,-746.22,0.00011296,2]
[421855089,1778231445000,-749.54,0.00011302,2]
[421855081,1778231445000,-297.57,0.00011302,2]
[421855079,1778231445000,-2154.73,0.00011302,2]
[421855136,1778231445000,-450.31,0.00011303,2]
[421855140,1778231445000,-506.88,0.00011303,2]
[421855150,1778231445000,-500.0,0.00011303,2]
[421855169,1778231445000,-538.88,0.00011303,2]
[421855157,1778231445000,-500.0,0.00011303,2]
[421855159,1778231445000,-3117.39,0.00011303,2]
[421855166,1778231445000,-1286.7596,0.00011303,2]
[421855173,1778231445000,-745.57,0.00011303,2]
[421855168,1778231445000,-500.0,0.00011303,2]
[421855171,1778231445000,-500.0,0.00011303,2]
[421855175,1778231445000,-1515.53,0.00011303,2]
[421855177,1778231445000,-500.0,0.00011303,2]
[421855179,1778231445000,-521.42,0.00011303,2]
[421855152,1778231445000,-558.3,0.00011303,2]
[421855185,1778231445000,-500.0,0.00011303,2]
[421855195,1778231445000,-834.58,0.00011303,2]
[421855181,1778231445000,-2614.11,0.00011303,2]
[421855191,1778231445000,-500.0,0.00011303,2]
[421855193,1778231445000,-657.95,0.00011303,2]
[421855187,1778231445000,-522.75,0.00011303,2]
[421855183,1778231445000,-500.0,0.00011303,2]
[421855197,1778231445000,-500.0,0.00011303,2]
[421855198,1778231445000,-500.0,0.00011303,2]
[421855200,1778231445000,-500.0,0.00011303,2]
[421855204,1778231445000,-500.0,0.00011303,2]
[421855202,1778231445000,-501.51854641,0.00011303,2]
[421855207,1778231445000,-1473.37,0.00011303,2]
[421855093,1778231445000,-2703.92,0.00011302,2]
[421855189,1778231445000,-534.67,0.00011303,2]
[421855156,1778231445000,-1554.37,0.00011303,2]
[421855209,1778231445000,-502.07412013,0.00011303,2]
[421855130,1778231445000,-574.3,0.00011303,2]
[421855148,1778231445000,-500.0,0.00011303,2]
[421855095,1778231445000,-643.3,0.00011302,2]
[421855091,1778231445000,-500.0,0.00011302,2]
[421855083,1778231445000,-2116.84,0.00011302,2]
[421855099,1778231445000,-500.0,0.00011303,2]
[421855101,1778231445000,-500.0,0.00011303,2]
[421855087,1778231445000,-500.0,0.00011302,2]
[421855086,1778231445000,-500.0,0.00011302,2]
[421855106,1778231445000,-500.0,0.00011303,2]
[421855104,1778231445000,-500.0,0.00011303,2]
[421855107,1778231445000,-578.58,0.00011303,2]
[421855114,1778231445000,-321.96,0.00011303,2]
[421855117,1778231445000,-500.0,0.00011303,2]
[421855109,1778231445000,-500.0,0.00011303,2]
[421855097,1778231445000,-500.0,0.00011302,2]
[421855123,1778231445000,-518.36,0.00011303,2]
[421855127,1778231445000,-500.0,0.00011303,2]
[421855132,1778231445000,-500.0,0.00011303,2]
[421855134,1778231445000,-626.06,0.00011303,2]
[421855146,1778231445000,-668.88,0.00011303,2]
[421855138,1778231445000,-1405.58,0.00011303,2]
[421855144,1778231445000,-500.0,0.00011303,2]
[421855154,1778231445000,-911.99,0.00011303,2]
[421855128,1778231445000,-1459.13,0.00011303,2]
[421855115,1778231445000,-500.0,0.00011303,2]
[421855125,1778231445000,-575.07,0.00011303,2]
[421855119,1778231445000,-500.0,0.00011303,2]
[421855142,1778231445000,-500.0,0.00011303,2]
[421855121,1778231445000,-500.0,0.00011303,2]
[421855111,1778231445000,-963.63,0.00011303,2]
[421855285,1778231446000,-1385.29,0.0001157,2]
[421855261,1778231446000,-500.0,0.0001157,2]
[421855275,1778231446000,-500.0,0.0001157,2]
[421855277,1778231446000,-1929.06,0.0001157,2]
[421855287,1778231446000,-500.0,0.0001157,2]
[421855281,1778231446000,-567.58,0.0001157,2]
[421855291,1778231446000,-4905.18,0.0001157,2]
[421855283,1778231446000,-1100.88,0.0001157,2]
[421855294,1778231446000,-576.02,0.0001157,2]
[421855289,1778231446000,-500.0,0.0001157,2]
[421855254,1778231446000,-1587.79,0.0001157,2]
[421855279,1778231446000,-1001.21,0.0001157,2]
[421855309,1778231446000,-500.0,0.00011576,2]
[421855298,1778231446000,-1220.01,0.00011576,2]
[421855300,1778231446000,-934.48,0.00011576,2]
[421855311,1778231446000,-500.0,0.00011576,2]
[421855314,1778231446000,-500.0,0.00011576,2]
[421855312,1778231446000,-749.54,0.00011576,2]
[421855304,1778231446000,-973.86,0.00011576,2]
[421855302,1778231446000,-500.0,0.00011576,2]
[421855305,1778231446000,-966.81,0.00011576,2]
[421855308,1778231446000,-2116.84,0.00011576,2]
[421855306,1778231446000,-3568.78,0.00011576,2]
[421855259,1778231446000,-679.82,0.0001157,2]
[421855307,1778231446000,-2154.73,0.00011576,2]
[421855296,1778231446000,-787.16,0.00011576,2]
[421855273,1778231446000,-2483.47,0.0001157,2]
[421855238,1778231446000,-253.521,0.0001154,2]
[421855257,1778231446000,-3898.24,0.0001157,2]
[421855316,1778231446000,-2703.92,0.00011576,2]
[421855215,1778231446000,-604.84,0.00011303,2]
[421855210,1778231446000,-500.0,0.00011303,2]
[421855221,1778231446000,-911.17308651,0.00011337,2]
[421855225,1778231446000,-252.63,0.00011501,2]
[421855219,1778231446000,-500.0,0.00011303,2]
[421855223,1778231446000,-500.0,0.00011401,2]
[421855212,1778231446000,-500.0,0.00011303,2]
[421855217,1778231446000,-624.56,0.00011303,2]
[421855227,1778231446000,-500.0,0.00011501,2]
[421855242,1778231446000,-911.17308651,0.00011544,2]
[421855236,1778231446000,-150.061,0.0001154,2]
[421855234,1778231446000,-500.0,0.00011501,2]
[421855240,1778231446000,-150.051,0.0001154,2]
[421855250,1778231446000,-500.0,0.0001157,2]
[421855229,1778231446000,-500.0,0.00011501,2]
[421855244,1778231446000,-500.0,0.0001157,2]
[421855248,1778231446000,-500.0,0.0001157,2]
[421855231,1778231446000,-389.96,0.00011501,2]
[421855246,1778231446000,-728.45,0.0001157,2]
[421855269,1778231446000,-500.0,0.0001157,2]
[421855263,1778231446000,-1537.23,0.0001157,2]
[421855265,1778231446000,-746.22,0.0001157,2]
[421855271,1778231446000,-914.28,0.0001157,2]
[421855267,1778231446000,-500.0,0.0001157,2]
[421855252,1778231446000,-19503.01,0.0001157,2]
[421855326,1778231446000,-500.0,0.00011577,2]
[421855334,1778231446000,-963.63,0.00011577,2]
[421855332,1778231446000,-500.0,0.00011577,2]
[421855372,1778231446000,-558.3,0.00011577,2]
[421855394,1778231446000,-500.0,0.00011577,2]
[421855406,1778231446000,-500.0,0.00011577,2]
[421855388,1778231446000,-500.0,0.00011577,2]
[421855392,1778231446000,-1515.53,0.00011577,2]
[421855400,1778231446000,-500.0,0.00011577,2]
[421855398,1778231446000,-2614.11,0.00011577,2]
[421855386,1778231446000,-538.88,0.00011577,2]
[421855396,1778231446000,-521.42,0.00011577,2]
[421855390,1778231446000,-745.57,0.00011577,2]
[421855404,1778231446000,-534.67,0.00011577,2]
[421855402,1778231446000,-522.75,0.00011577,2]
[421855414,1778231446000,-500.0,0.00011577,2]
[421855408,1778231446000,-657.95,0.00011577,2]
[421855418,1778231446000,-500.0,0.00011577,2]
[421855420,1778231446000,-1712.5579803,0.00011617,2]
[421855416,1778231446000,-1473.37,0.00011577,2]
[421855410,1778231446000,-834.58,0.00011577,2]
[421855428,1778231446000,-160.0,0.00011629,2]
[421855412,1778231446000,-500.0,0.00011577,2]
[421855422,1778231446000,-161.58879827,0.00011629,2]
[421855424,1778231446000,-160.0,0.00011629,2]
[421855426,1778231446000,-160.0,0.00011629,2]
[421855432,1778231446000,-151.0,0.000117,2]
[421855328,1778231446000,-500.0,0.00011577,2]
[421855370,1778231446000,-500.0,0.00011577,2]
[421855384,1778231446000,-500.0,0.00011577,2]
[421855430,1778231446000,-500.0,0.00011675,2]
[421855378,1778231446000,-500.0,0.00011577,2]
[421855380,1778231446000,-3117.39,0.00011577,2]
[421855318,1778231446000,-643.3,0.00011576,2]
[421855336,1778231446000,-500.0,0.00011577,2]
[421855320,1778231446000,-500.0,0.00011576,2]
[421855322,1778231446000,-290.49,0.00011577,2]
[421855324,1778231446000,-500.0,0.00011577,2]
[421855340,1778231446000,-500.0,0.00011577,2]
[421855345,1778231446000,-518.36,0.00011577,2]
[421855347,1778231446000,-575.07,0.00011577,2]
[421855354,1778231446000,-500.0,0.00011577,2]
[421855351,1778231446000,-1459.13,0.00011577,2]
[421855343,1778231446000,-500.0,0.00011577,2]
[421855330,1778231446000,-578.58,0.00011577,2]
[421855339,1778231446000,-500.0,0.00011577,2]
[421855349,1778231446000,-500.0,0.00011577,2]
[421855376,1778231446000,-1554.37,0.00011577,2]
[421855382,1778231446000,-1286.7596,0.00011577,2]
[421855364,1778231446000,-500.0,0.00011577,2]
[421855374,1778231446000,-911.99,0.00011577,2]
[421855366,1778231446000,-668.88,0.00011577,2]
[421855368,1778231446000,-500.0,0.00011577,2]
[421855360,1778231446000,-506.88,0.00011577,2]
[421855359,1778231446000,-1405.58,0.00011577,2]
[421855357,1778231446000,-626.06,0.00011577,2]
[421855353,1778231446000,-574.3,0.00011577,2]
[421855362,1778231446000,-500.0,0.00011577,2]
[421855504,1778231447000,-2154.73,0.0001185,2]
[421855508,1778231447000,-500.0,0.0001185,2]
[421855516,1778231447000,-2703.92,0.0001185,2]
[421855506,1778231447000,-2116.84,0.0001185,2]
[421855491,1778231447000,-787.16,0.0001185,2]
[421855500,1778231447000,-966.81,0.0001185,2]
[421855498,1778231447000,-973.86,0.0001185,2]
[421855496,1778231447000,-500.0,0.0001185,2]
[421855494,1778231447000,-934.48,0.0001185,2]
[421855502,1778231447000,-3568.78,0.0001185,2]
[421855518,1778231447000,-643.3,0.0001185,2]
[421855524,1778231447000,-500.0,0.00011851,2]
[421855514,1778231447000,-500.0,0.0001185,2]
[421855510,1778231447000,-500.0,0.0001185,2]
[421855528,1778231447000,-500.0,0.00011851,2]
[421855532,1778231447000,-500.0,0.00011851,2]
[421855531,1778231447000,-578.58,0.00011851,2]
[421855537,1778231447000,-500.0,0.00011851,2]
[421855533,1778231447000,-963.63,0.00011851,2]
[421855535,1778231447000,-500.0,0.00011851,2]
[421855536,1778231447000,-500.0,0.00011851,2]
[421855520,1778231447000,-500.0,0.0001185,2]
[421855483,1778231447000,-1385.29,0.00011844,2]
[421855534,1778231447000,-500.0,0.00011851,2]
[421855512,1778231447000,-749.54,0.0001185,2]
[421855485,1778231447000,-500.0,0.00011844,2]
[421855455,1778231447000,-3898.24,0.00011844,2]
[421855493,1778231447000,-1220.01,0.0001185,2]
[421855526,1778231447000,-500.0,0.00011851,2]
[421855441,1778231447000,-151.0,0.000118,2]
[421855437,1778231447000,-500.0,0.00011775,2]
[421855445,1778231447000,-728.45,0.00011844,2]
[421855447,1778231447000,-500.0,0.00011844,2]
[421855435,1778231447000,-500.0,0.00011775,2]
[421855434,1778231447000,-911.17308651,0.00011751,2]
[421855444,1778231447000,-500.0,0.00011844,2]
[421855449,1778231447000,-500.0,0.00011844,2]
[421855463,1778231447000,-746.22,0.00011844,2]
[421855465,1778231447000,-500.0,0.00011844,2]
[421855467,1778231447000,-500.0,0.00011844,2]
[421855469,1778231447000,-914.28,0.00011844,2]
[421855457,1778231447000,-679.82,0.00011844,2]
[421855451,1778231447000,-19503.01,0.00011844,2]
[421855453,1778231447000,-1587.79,0.00011844,2]
[421855459,1778231447000,-500.0,0.00011844,2]
[421855461,1778231447000,-1537.23,0.00011844,2]
[421855471,1778231447000,-2483.47,0.00011844,2]
[421855473,1778231447000,-500.0,0.00011844,2]
[421855477,1778231447000,-1001.21,0.00011844,2]
[421855489,1778231447000,-576.02,0.00011844,2]
[421855481,1778231447000,-1100.88,0.00011844,2]
[421855487,1778231447000,-4905.18,0.00011844,2]
[421855479,1778231447000,-567.58,0.00011844,2]
[421855475,1778231447000,-1929.06,0.00011844,2]
[421855522,1778231447000,-176.2407,0.00011851,2]
[421855439,1778231447000,-500.0,0.00011775,2]
[421855544,1778231447000,-626.06,0.00011851,2]
[421855580,1778231447000,-500.0,0.00011851,2]
[421855577,1778231447000,-500.0,0.00011851,2]
[421855578,1778231447000,-500.0,0.00011851,2]
[421855574,1778231447000,-500.0,0.00011851,2]
[421855584,1778231447000,-151.0,0.00012,2]
[421855579,1778231447000,-1473.37,0.00011851,2]
[421855582,1778231447000,-334.17,0.00011949,2]
[421855585,1778231447000,-500.0,0.00012049,2]
[421855576,1778231447000,-834.58,0.00011851,2]
[421855583,1778231447000,-163986.78848414,0.00012,2]
[421855581,1778231447000,-360.13169143,0.00011941,2]
[421855598,1778231447000,-500.0,0.00012118,2]
[421855593,1778231447000,-420.0,0.00012111,2]
[421855592,1778231447000,-151.0,0.000121,2]
[421855596,1778231447000,-728.45,0.00012118,2]
[421855590,1778231447000,-178.74,0.000121,2]
[421855604,1778231447000,-1587.79,0.00012118,2]
[421855600,1778231447000,-500.0,0.00012118,2]
[421855588,1778231447000,-500.0,0.00012049,2]
[421855586,1778231447000,-500.0,0.00012049,2]
[421855602,1778231447000,-19503.01,0.00012118,2]
[421855606,1778231447000,-3898.24,0.00012118,2]
[421855595,1778231447000,-500.0,0.00012118,2]
[421855608,1778231447000,-679.82,0.00012118,2]
[421855545,1778231447000,-1405.58,0.00011851,2]
[421855573,1778231447000,-534.67,0.00011851,2]
[421855570,1778231447000,-2614.11,0.00011851,2]
[421855575,1778231447000,-657.95,0.00011851,2]
[421855568,1778231447000,-500.0,0.00011851,2]
[421855538,1778231447000,-518.36,0.00011851,2]
[421855571,1778231447000,-500.0,0.00011851,2]
[421855540,1778231447000,-500.0,0.00011851,2]
[421855543,1778231447000,-382.89513906,0.00011851,2]
[421855546,1778231447000,-506.88,0.00011851,2]
[421855539,1778231447000,-575.07,0.00011851,2]
[421855541,1778231447000,-1459.13,0.00011851,2]
[421855547,1778231447000,-500.0,0.00011851,2]
[421855548,1778231447000,-500.0,0.00011851,2]
[421855550,1778231447000,-415.18825144,0.00011851,2]
[421855560,1778231447000,-1286.7596,0.00011851,2]
[421855549,1778231447000,-668.88,0.00011851,2]
[421855554,1778231447000,-1554.37,0.00011851,2]
[421855542,1778231447000,-574.3,0.00011851,2]
[421855561,1778231447000,-500.0,0.00011851,2]
[421855572,1778231447000,-522.75,0.00011851,2]
[421855556,1778231447000,-500.0,0.00011851,2]
[421855565,1778231447000,-500.0,0.00011851,2]
[421855567,1778231447000,-1515.53,0.00011851,2]
[421855566,1778231447000,-745.57,0.00011851,2]
[421855557,1778231447000,-3117.39,0.00011851,2]
[421855569,1778231447000,-521.42,0.00011851,2]
[421855552,1778231447000,-558.3,0.00011851,2]
[421855551,1778231447000,-500.0,0.00011851,2]
[421855562,1778231447000,-538.88,0.00011851,2]
[421855553,1778231447000,-911.99,0.00011851,2]
[421855684,1778231448000,-500.0,0.00012125,2]
[421855655,1778231448000,-500.0,0.00012124,2]
[421855657,1778231448000,-500.0,0.00012124,2]
[421855669,1778231448000,-500.0,0.00012125,2]